[Event "FIDE Grand Swiss 2023"]
[Site "Villa Marina, Douglas, Isle of Man"]
[Date "2023.11.04"]
[Round "10.44"]
[White "Gukesh, D"]
[Black "Dardha, Daniel"]
[Result "1/2-1/2"]
[WhiteElo "2758"]
[BlackElo "2580"]
[EventDate "2023.10.25"]
[ECO "D41"]
[PlyCount "118"]
[BlackClock "00:28:20"]
[BlackFideId "240990"]
[TimeControl "40/100 + 20/50 + 15 + 30s/move"]
[WhiteClock "00:54:30"]
[WhiteFideId "46616543"]

1.d4 {[%clk 01:40:57][%emt 00:00:02]} 1...Nf6 {[%clk 01:40:51][%emt 00:00:10]} 
2.c4 {[%clk 01:41:21][%emt 00:00:06]} 2...e6 {[%clk 01:41:17][%emt 00:00:04]} 
3.Nf3 {[%clk 01:41:46][%emt 00:00:05]} 3...d5 {[%clk 01:41:41][%emt 00:00:06]} 
4.Nc3 {[%clk 01:41:20][%emt 00:00:56]} 4...c5 {[%clk 01:41:54][%emt 00:00:17]} 
5.cxd5 {[%clk 01:41:18][%emt 00:00:33]} 5...cxd4 {[%clk 01:42:16][%emt
00:00:06]} 6.Qxd4 {[%clk 01:41:43][%emt 00:00:06]} 6...exd5 {[%clk
01:43:09][%emt 00:00:07]} 7.Bg5 {[%clk 01:42:37][%emt 00:00:06]} 7...Be7 {[%clk
01:43:12][%emt 00:00:27]} 8.e3 {[%clk 01:43:01][%emt 00:00:06]} 8...O-O {[%clk
01:43:28][%emt 00:00:14]} 9.Bd3 {[%clk 01:42:40][%emt 00:00:50]} 9...Nc6 {[%clk
01:38:15][%emt 00:05:43]} 10.Qa4 {[%clk 01:42:33][%emt 00:00:38]} 10...h6 
{[%clk 01:37:01][%emt 00:01:44]} 11.Bh4 {[%clk 01:42:52][%emt 00:00:10]} 
11...Be6 {[%clk 01:36:34][%emt 00:00:58]} 12.O-O {[%clk 01:42:33][%emt
00:00:49]} 12...Qb6 {[%clk 01:35:34][%emt 00:01:31]} 13.Ne2 {[%clk 01:42:45]
[%emt 00:00:17]} 13...Nb4 {[%clk 01:27:54] [%emt 00:08:10]} 14.Bb1 {[%clk
01:35:01][%emt 00:08:14]} 14...Nc6 {[%clk 01:24:42][%emt 00:03:42]} 15.Bd3 
{[%clk 01:42:45][%emt 00:00:17]} 15...Nb4 {[%clk 01:27:54][%emt 00:08:10]} 
16.Qd1 {[%clk 01:31:39][%emt 00:01:11]} 16...Nxd3 {[%clk 01:14:49][%emt
00:09:34]} 17.Qxd3 {[%clk 01:30:26][%emt 00:01:43]} 17...g5 {[%clk
01:10:29][%emt 00:04:50]} 18.Bg3 {[%clk 01:30:31][%emt 00:00:26]} 18...Ne4 
{[%clk 01:09:04][%emt 00:01:55]} 19.Be5 {[%clk 01:26:11][%emt 00:04:50]} 
19...Qa6 {[%clk 01:00:55][%emt 00:08:39]} 20.Qd1 {[%clk 01:25:44][%emt
00:00:56]} 20...f6 {[%clk 00:55:53][%emt 00:05:32]} 21.Bc3 {[%clk 01:20:55][%emt
00:05:20]} 21...Rad8 {[%clk 00:51:26][%emt 00:04:57]} 22.Nfd4 {[%clk
01:19:51][%emt 00:01:33]} 22...Bc8 {[%clk 00:50:34][%emt 00:01:22]} 23.a3 
{[%clk 01:13:17][%emt 00:07:04]} 23...Nxc3 {[%clk 00:43:01][%emt 00:08:03]} 
24.Nxc3 {[%clk 01:11:42][%emt 00:02:06]} 24...f5 {[%clk 00:43:23][%emt
00:00:08]} 25.Qc2 {[%clk 01:01:05][%emt 00:11:06]} 25...Bf6 {[%clk
00:38:32][%emt 00:05:20]} 26.Rad1 {[%clk 01:00:55][%emt 00:00:41]} 26...Bg7 
{[%clk 00:38:11][%emt 00:00:51]} 27.Rd2 {[%clk 00:55:44][%emt 00:05:42]} 
27...f4 {[%clk 00:34:24][%emt 00:04:17]} 28.exf4 {[%clk 00:55:04][%emt
00:01:11]} 28...Rxf4 {[%clk 00:33:38][%emt 00:01:15]} 29.Rfd1 {[%clk
00:45:35][%emt 00:09:58]} 29...Qb6 {[%clk 00:27:04][%emt 00:07:05]} 30.Nf3 
{[%clk 00:31:40][%emt 00:14:25]} 30...Bf5 {[%clk 00:22:56][%emt 00:04:38]} 
31.Qc1 {[%clk 00:31:42][%emt 00:00:28]} 31...d4 {[%clk 00:11:34][%emt 00:11:52]} 
32.Ne2 {[%clk 00:31:10][%emt 00:01:02]} 32...Rc8 {[%clk 00:11:14][%emt
00:00:50]} 33.Qa1 {[%clk 00:31:34][%emt 00:00:05]} 33...Rxf3 {[%clk
00:10:36][%emt 00:01:09]} 34.gxf3 {[%clk 00:31:56][%emt 00:00:07]} 34...d3 
{[%clk 00:07:34][%emt 00:03:33]} 35.Ng3 {[%clk 00:31:38][%emt 00:00:47]} 
35...Bg6 {[%clk 00:07:18][%emt 00:00:47]} 36.Ne4 {[%clk 00:18:52][%emt
00:13:17]} 36...Rf8 {[%clk 00:06:51][%emt 00:00:56]} 37.Qa2+ {[%clk
00:17:45][%emt 00:01:37]} 37...Bf7 {[%clk 00:03:08][%emt 00:04:14]} 38.Qb1 
{[%clk 00:18:07][%emt 00:00:07]} 38...Bb3 {[%clk 00:01:17][%emt 00:02:20]} 
39.Qxd3 {[%clk 00:16:33][%emt 00:02:05]} 39...Bxd1 {[%clk 00:01:43][%emt
00:00:04]} 40.Rxd1 {[%clk 00:17:00][%emt 00:00:03]} 40...Qxb2 {[%clk
00:01:53][%emt 00:00:20]} 41.Nc5 {[%clk 00:14:06][%emt 00:03:25]} 41...Qc3 
{[%clk 00:42:23][%emt 00:09:59]} 42.Qxc3 {[%clk 01:00:42][%emt 00:03:55]} 
42...Bxc3 {[%clk 00:42:44][%emt 00:00:08]} 43.Rd3 {[%clk 01:01:08][%emt
00:00:03]} 43...Ba5 {[%clk 00:41:15][%emt 00:01:59]} 44.Nxb7 {[%clk
01:01:01][%emt 00:00:38]} 44...Bb6 {[%clk 00:41:36][%emt 00:00:10]} 45.Rc3 
{[%clk 00:58:00][%emt 00:03:31]} 45...g4 {[%clk 00:34:49][%emt 00:07:16]} 
46.Kg2 {[%clk 00:58:06][%emt 00:00:23]} 46...Rf6 {[%clk 00:34:46][%emt
00:00:33]} 47.fxg4 {[%clk 00:50:25][%emt 00:08:11]} 47...Rxf2+ {[%clk
00:35:03][%emt 00:00:13]} 48.Kg3 {[%clk 00:50:54][%emt 00:00:02]} 48...Rd2 
{[%clk 00:32:16][%emt 00:03:16]} 49.a4 {[%clk 00:51:19][%emt 00:00:06]} 
49...Rd7 {[%clk 00:26:34][%emt 00:06:10]} 50.Nc5 {[%clk 00:51:17][%emt
00:00:33]} 50...Rd4 {[%clk 00:26:52][%emt 00:00:11]} 51.Kh4 {[%clk
00:51:08][%emt 00:00:40]} 51...Bxc5 {[%clk 00:25:32][%emt 00:01:51]} 52.Rxc5 
{[%clk 00:51:33][%emt 00:00:05]} 52...Rxa4 {[%clk 00:25:54][%emt 00:00:08]} 
53.Kh5 {[%clk 00:51:53][%emt 00:00:09]} 53...Ra6 {[%clk 00:26:11][%emt
00:00:14]} 54.Rc7 {[%clk 00:52:19][%emt 00:00:04]} 54...Kh8 {[%clk
00:26:23][%emt 00:00:18]} 55.h4 {[%clk 00:52:45][%emt 00:00:04]} 55...Kg8 
{[%clk 00:26:45][%emt 00:00:07]} 56.g5 {[%clk 00:53:12] [%emt 00:00:04]} 
56...hxg5 {[%clk 00:27:10] [%emt 00:00:05]} 57.hxg5 {[%clk 00:53:40] [%emt
00:00:01]} 57...Rb6 {[%clk 00:27:31] [%emt 00:00:10]} 58.Rxa7 {[%clk 00:54:07]
[%emt 00:00:03]} 58...Rc6 {[%clk 00:27:55] [%emt 00:00:05]} 59.g6 {[%clk
00:54:34] [%emt 00:00:04]} 59...Rc1 {[%clk 00:28:20] [%emt 00:00:05]} 1/2-1/2

[Event "FIDE Grand Swiss 2023"]
[Site "Villa Marina, Douglas, Isle of Man"]
[Date "2023.11.04"]
[Round "10.45"]
[White "Vokhidov, Shamsiddin"]
[Black "Donchenko, Alexander"]
[Result "1-0"]
[WhiteElo "2578"]
[BlackElo "2676"]
[EventDate "2023.10.25"]
[ECO "B12"]
[PlyCount "83"]
[BlackClock "00:00:10"]
[BlackFideId "24603295"]
[TimeControl "40/100 + 20/50 + 15 + 30s/move"]
[WhiteClock "00:01:53"]
[WhiteFideId "14204223"]

1.e4 {[%clk 01:40:57][%emt 00:00:02]} 1...c6 {[%clk 01:40:54][%emt 00:00:07]} 
2.d4 {[%clk 01:39:51][%emt 00:01:36]} 2...d5 {[%clk 01:41:18][%emt 00:00:07]} 
3.e5 {[%clk 01:40:18][%emt 00:00:02]} 3...Bf5 {[%clk 01:41:41][%emt 00:00:07]} 
4.h4 {[%clk 01:40:46][%emt 00:00:02]} 4...h5 {[%clk 01:42:02][%emt 00:00:09]} 
5.Bd3 {[%clk 01:41:12][%emt 00:00:04]} 5...Bxd3 {[%clk 01:42:25][%emt 00:00:07]} 
6.Qxd3 {[%clk 01:41:39][%emt 00:00:03]} 6...Qa5+ {[%clk 01:42:47][%emt
00:00:08]} 7.c3 {[%clk 01:42:03][%emt 00:00:06]} 7...Qa6 {[%clk 01:42:13][%emt
00:01:04]} 8.Qd1 {[%clk 01:42:27][%emt 00:00:06]} 8...e6 {[%clk 01:36:45][%emt
00:05:58]} 9.a4 {[%clk 01:42:07][%emt 00:00:50]} 9...c5 {[%clk 01:34:00][%emt
00:03:15]} 10.Na3 {[%clk 01:42:04][%emt 00:00:34]} 10...Qb6 {[%clk
01:19:26][%emt 00:15:03]} 11.Nc2 {[%clk 01:40:03][%emt 00:02:31]} 11...Nc6 
{[%clk 01:15:54][%emt 00:04:02]} 12.Nf3 {[%clk 01:30:05][%emt 00:10:28]} 
12...Nh6 {[%clk 01:09:41][%emt 00:06:43]} 13.O-O {[%clk 01:25:50][%emt
00:04:45]} 13...Nf5 {[%clk 01:05:30][%emt 00:04:41]} 14.a5 {[%clk 01:11:26][%emt
00:14:55]} 14...Qc7 {[%clk 01:04:31][%emt 00:01:28]} 15.a6 {[%clk 01:11:07][%emt
00:00:49]} 15...b6 {[%clk 00:54:59][%emt 00:10:02]} 16.Bg5 {[%clk 01:03:11][%emt
00:08:26]} 16...Be7 {[%clk 00:53:29][%emt 00:02:01]} 17.Ne3 {[%clk
00:59:54][%emt 00:03:47]} 17...Bxg5 {[%clk 00:51:28][%emt 00:02:30]} 18.Nxf5 
{[%clk 00:56:24][%emt 00:04:00]} 18...Be7 {[%clk 00:51:32][%emt 00:00:26]} 
19.Nxe7 {[%clk 00:55:00][%emt 00:01:55]} 19...Nxe7 {[%clk 00:45:12][%emt
00:06:50]} 20.c4 {[%clk 00:53:43][%emt 00:01:47]} 20...dxc4 {[%clk
00:40:40][%emt 00:05:01]} 21.Qa4+ {[%clk 00:50:55][%emt 00:03:18]} 21...Qc6 
{[%clk 00:37:22][%emt 00:03:48]} 22.Qxc4 {[%clk 00:49:04][%emt 00:02:22]} 
22...cxd4 {[%clk 00:35:16][%emt 00:02:35]} 23.Qxd4 {[%clk 00:43:21][%emt
00:06:13]} 23...O-O {[%clk 00:33:28][%emt 00:02:19]} 24.Rfc1 {[%clk
00:41:34][%emt 00:02:17]} 24...Qb5 {[%clk 00:26:04][%emt 00:07:54]} 25.Rc7 
{[%clk 00:34:37][%emt 00:07:26]} 25...Nf5 {[%clk 00:24:15][%emt 00:02:19]} 
26.Qc3 {[%clk 00:32:41][%emt 00:02:26]} 26...Rfd8 {[%clk 00:22:13][%emt
00:02:33]} 27.Ng5 {[%clk 00:29:49][%emt 00:03:22]} 27...Nd4 {[%clk
00:20:01][%emt 00:02:42]} 28.Kh1 {[%clk 00:29:01][%emt 00:01:18]} 28...Qe2 
{[%clk 00:13:02][%emt 00:07:28]} 29.Rxf7 {[%clk 00:27:17][%emt 00:02:14]} 
29...Rac8 {[%clk 00:12:27][%emt 00:01:05]} 30.Qe1 {[%clk 00:22:14][%emt
00:05:33]} 30...Qc2 {[%clk 00:08:32][%emt 00:04:25]} 31.Rxa7 {[%clk
00:15:30][%emt 00:07:14]} 31...Nb3 {[%clk 00:07:13][%emt 00:01:49]} 32.Rb1 
{[%clk 00:15:51][%emt 00:00:09]} 32...Nd2 {[%clk 00:05:43][%emt 00:02:00]} 
33.Rd1 {[%clk 00:14:18]} 33...Rd4 {[%clk 00:04:55][%emt 00:01:18]} 34.Qe2 
{[%clk 00:09:33][%emt 00:05:16]} 34...g6 {[%clk 00:00:56][%emt 00:04:29]} 35.f4 
{[%clk 00:05:45][%emt 00:04:17]} 35...Rcd8 {[%clk 00:00:37][%emt 00:00:50]} 
36.Rf1 {[%clk 00:02:00][%emt 00:04:15]} 36...Qf5 {[%clk 00:00:50][%emt
00:00:17]} 37.Nf7 {[%clk 00:01:50][%emt 00:00:39]} 37...Kf8 {[%clk
00:00:32][%emt 00:00:49]} 38.Nxd8 {[%clk 00:01:44][%emt 00:00:36]} 38...Nxf1 
{[%clk 00:00:54][%emt 00:00:08]} 39.Qxf1 {[%clk 00:01:55][%emt 00:00:19]} 
39...Rxd8 {[%clk 00:00:54][%emt 00:00:30]} 40.Rc7 {[%clk 00:01:47][%emt
00:00:38]} 40...Qe4 {[%clk 00:00:31][%emt 00:00:53]} 41.a7 {[%clk 00:01:53][%emt
00:00:24]} 41...Kg8 {[%clk 00:00:33][%emt 00:00:28]} 42.Kh2 {[%clk
00:01:53][%emt 00:00:29]} 1-0

[Event "FIDE Grand Swiss 2023"]
[Site "Villa Marina, Douglas, Isle of Man"]
[Date "2023.11.04"]
[Round "10.46"]
[White "Santos Latasa, Jaime"]
[Black "Kozak, Adam"]
[Result "1/2-1/2"]
[WhiteElo "2650"]
[BlackElo "2566"]
[EventDate "2023.10.25"]
[ECO "C50"]
[PlyCount "47"]
[BlackFideId "753246"]
[TimeControl "40/100 + 20/50 + 15 + 30s/move"]
[WhiteFideId "2293307"]

1.e4 {[%clk 01:40:56][%emt 00:00:03]} 1...e5 {[%clk 01:40:54][%emt 00:00:07]} 
2.Nf3 {[%clk 01:41:20][%emt 00:00:06]} 2...Nc6 {[%clk 01:41:18][%emt 00:00:06]} 
3.Bc4 {[%clk 01:41:46][%emt 00:00:04]} 3...Bc5 {[%clk 01:41:38][%emt 00:00:09]} 
4.d3 {[%clk 01:42:10][%emt 00:00:07]} 4...d6 {[%clk 01:41:54][%emt 00:00:14]} 
5.a4 {[%clk 01:40:35][%emt 00:02:05]} 5...a5 {[%clk 01:38:04][%emt 00:04:19]} 
6.O-O {[%clk 01:39:23][%emt 00:01:42]} 6...Nf6 {[%clk 01:35:58][%emt 00:02:36]} 
7.Be3 {[%clk 01:38:11][%emt 00:01:42]} 7...Bxe3 {[%clk 01:32:52][%emt 00:03:36]} 
8.fxe3 {[%clk 01:38:25][%emt 00:00:16]} 8...O-O {[%clk 01:33:11][%emt 00:00:11]} 
9.Nbd2 {[%clk 01:38:40][%emt 00:00:16]} 9...Ne7 {[%clk 01:27:53][%emt 00:05:47]} 
10.Nh4 {[%clk 01:36:45][%emt 00:02:25]} 10...Ng6 {[%clk 01:23:23][%emt
00:05:00]} 11.Nxg6 {[%clk 01:30:27][%emt 00:06:49]} 11...hxg6 {[%clk
01:23:46][%emt 00:00:06]} 12.Nf3 {[%clk 01:30:51][%emt 00:00:06]} 12...Ng4 
{[%clk 01:09:16][%emt 00:15:00]} 13.Qe1 {[%clk 01:23:49][%emt 00:07:33]} 
13...Qe7 {[%clk 01:07:20][%emt 00:02:25]} 14.h3 {[%clk 01:01:25][%emt 00:22:54]} 
14...Nh6 {[%clk 01:06:25][%emt 00:01:24]} 15.Qg3 {[%clk 00:53:43][%emt
00:08:13]} 15...Be6 {[%clk 01:05:45][%emt 00:01:10]} 16.Bxe6 {[%clk
00:53:47][%emt 00:00:26]} 16...Qxe6 {[%clk 01:06:10][%emt 00:00:06]} 17.Rf2 
{[%clk 00:54:08][%emt 00:00:09]} 17...Qe8 {[%clk 01:02:56][%emt 00:03:44]} 
18.Nh4 {[%clk 00:52:40][%emt 00:01:57]} 18...Kh7 {[%clk 01:01:48][%emt
00:01:38]} 19.b3 {[%clk 00:51:27][%emt 00:01:44]} 19...f6 {[%clk 01:01:18][%emt
00:01:00]} 20.Raf1 {[%clk 00:51:46][%emt 00:00:10]} 20...Rd8 {[%clk 00:56:42]
[%emt 00:05:06]} 21.Nf3 {[%clk 00:51:31] [%emt 00:00:45]} 21...Qd7 {[%clk
00:54:07] [%emt 00:03:05]} 22.Nh4 {[%clk 00:51:23] [%emt 00:00:38]} 22...Qe8 
{[%clk 00:56:42][%emt 00:05:06]} 23.Nf3 {[%clk 00:51:31][%emt 00:00:45]} 
23...Qd7 {[%clk 00:54:07][%emt 00:03:05]} 24.Nh4 {[%clk 00:52:14][%emt
00:00:05]} 1/2-1/2

[Event "FIDE Grand Swiss 2023"]
[Site "Villa Marina, Douglas, Isle of Man"]
[Date "2023.11.04"]
[Round "10.47"]
[White "Idani, Pouya"]
[Black "Maurizzi, Marc`andria"]
[Result "1-0"]
[WhiteElo "2633"]
[BlackElo "2555"]
[EventDate "2023.10.25"]
[ECO "C50"]
[PlyCount "153"]
[BlackFideId "36083534"]
[TimeControl "40/100 + 20/50 + 15 + 30s/move"]
[WhiteFideId "12510130"]

1.e4 {[%clk 01:40:57][%emt 00:00:03]} 1...e5 {[%clk 01:40:58][%emt 00:00:03]} 
2.Nf3 {[%clk 01:41:21][%emt 00:00:06]} 2...Nc6 {[%clk 01:41:26][%emt 00:00:02]} 
3.Bc4 {[%clk 01:41:45][%emt 00:00:06]} 3...Bc5 {[%clk 01:41:29][%emt 00:00:26]} 
4.Nc3 {[%clk 01:42:01][%emt 00:00:15]} 4...Nf6 {[%clk 01:40:44][%emt 00:01:16]} 
5.d3 {[%clk 01:42:25][%emt 00:00:05]} 5...a6 {[%emt 00:02:19]} 6.Be3 {[%clk
01:42:43][%emt 00:00:06]} 6...d6 {[%clk 01:39:26][%emt 00:00:06]} 7.a4 {[%clk
01:38:50][%emt 00:04:22]} 7...O-O {[%clk 01:37:40][%emt 00:02:16]} 8.O-O {[%clk
01:39:14][%emt 00:00:06]} 8...h6 {[%clk 01:30:13][%emt 00:07:57]} 9.h3 {[%clk
01:35:19][%emt 00:04:25]} 9...Re8 {[%clk 01:28:59][%emt 00:01:45]} 10.Bxc5 
{[%clk 01:30:48][%emt 00:05:01]} 10...dxc5 {[%clk 01:27:40][%emt 00:01:48]} 
11.Nd5 {[%clk 01:30:43][%emt 00:00:34]} 11...Nxd5 {[%clk 01:25:04][%emt
00:03:07]} 12.Bxd5 {[%clk 01:31:07][%emt 00:00:05]} 12...Ne7 {[%clk
01:24:58][%emt 00:00:36]} 13.Bc4 {[%clk 01:29:43][%emt 00:01:55]} 13...Ng6 
{[%clk 01:25:07][%emt 00:00:21]} 14.Kh2 {[%clk 01:26:10][%emt 00:04:03]} 
14...Nh4 {[%clk 01:12:36][%emt 00:13:01]} 15.Ne1 {[%clk 01:20:12][%emt
00:06:28]} 15...Be6 {[%clk 01:12:00][%emt 00:01:06]} 16.Bxe6 {[%clk
01:18:49][%emt 00:01:53]} 16...Rxe6 {[%clk 01:12:27][%emt 00:00:03]} 17.g3 
{[%clk 01:19:11][%emt 00:00:08]} 17...Ng6 {[%clk 01:12:56][%emt 00:00:01]} 
18.Ng2 {[%clk 01:19:26][%emt 00:00:15]} 18...Qd6 {[%clk 01:00:11]} 19.Ne3 
{[%clk 01:13:39][%emt 00:06:17]} 19...Ne7 {[%clk 00:59:09][%emt 00:01:31]} 
20.f4 {[%clk 01:05:33][%emt 00:08:36]} 20...exf4 {[%clk 00:58:31][%emt
00:01:08]} 21.gxf4 {[%clk 01:05:26][%emt 00:00:39]} 21...f5 {[%clk
00:55:34][%emt 00:03:26]} 22.e5 {[%clk 00:59:41][%emt 00:06:15]} 22...Qd4 
{[%clk 00:54:59][%emt 00:01:05]} 23.Qf3 {[%clk 01:00:02][%emt 00:00:10]} 
23...Rf8 {[%clk 00:54:03][%emt 00:01:25]} 24.c3 {[%clk 00:54:29][%emt 00:06:04]} 
24...Qxd3 {[%clk 00:49:40][%emt 00:04:53]} 25.Rad1 {[%clk 00:54:53][%emt
00:00:05]} 25...Qe4 {[%clk 00:50:08][%emt 00:00:02]} 26.Rd7 {[%clk
00:50:02][%emt 00:05:21]} 26...Qxf3 {[%clk 00:45:40][%emt 00:04:58]} 27.Rxf3 
{[%clk 00:50:26][%emt 00:00:05]} 27...Rc8 {[%clk 00:43:47][%emt 00:02:23]} 
28.c4 {[%clk 00:44:20][%emt 00:06:36]} 28...c6 {[%clk 00:19:49][%emt 00:24:29]} 
29.Rg3 {[%clk 00:29:06][%emt 00:15:44]} 29...Rf8 {[%clk 00:11:58][%emt
00:08:21]} 30.h4 {[%clk 00:24:25][%emt 00:05:11]} 30...Rf7 {[%clk 00:09:48][%emt
00:02:40]} 31.Rxb7 {[%clk 00:18:23][%emt 00:06:33]} 31...Ng6 {[%clk
00:09:17][%emt 00:01:00]} 32.Rxf7 {[%clk 00:17:51][%emt 00:01:03]} 32...Kxf7 
{[%clk 00:09:44][%emt 00:00:03]} 33.Nxf5 {[%clk 00:16:26][%emt 00:01:54]} 
33...Nxf4 {[%clk 00:10:09][%emt 00:00:05]} 34.Rxg7+ {[%clk 00:16:53][%emt
00:00:03]} 34...Kf8 {[%clk 00:10:36][%emt 00:00:03]} 35.Ra7 {[%clk
00:17:00][%emt 00:00:23]} 35...h5 {[%clk 00:05:03][%emt 00:06:03]} 36.Rxa6 
{[%clk 00:07:58][%emt 00:09:33]} 36...Rxe5 {[%clk 00:05:20][%emt 00:00:12]} 
37.Ra8+ {[%clk 00:08:23][%emt 00:00:05]} 37...Kf7 {[%clk 00:05:45][%emt
00:00:05]} 38.a5 {[%clk 00:07:56][%emt 00:00:57]} 38...Rxf5 {[%clk
00:02:12][%emt 00:04:03]} 39.a6 {[%clk 00:07:53][%emt 00:00:34]} 39...Kg7 
{[%clk 00:00:56][%emt 00:01:45]} 40.a7 {[%clk 00:07:49][%emt 00:00:33]} 
40...Rf7 {[%clk 00:01:12][%emt 00:00:14]} 41.Rg8+ {[%clk 00:08:12][%emt
00:00:08]} 41...Kxg8 {[%clk 00:01:36][%emt 00:00:07]} 42.a8=Q+ {[%clk
00:08:38][%emt 00:00:04]} 42...Kg7 {[%clk 00:02:02][%emt 00:00:03]} 43.Qxc6 
{[%clk 00:08:39][%emt 00:00:29]} 43...Rf5 {[%clk 00:02:05][%emt 00:00:27]} 
44.b4 {[%clk 00:49:56][%emt 00:09:13]} 44...cxb4 {[%clk 00:52:28][%emt
00:00:07]} 45.c5 {[%clk 00:50:09][%emt 00:00:17]} 45...b3 {[%clk 00:45:40][%emt
00:07:18]} 46.Qb7+ {[%clk 00:31:45][%emt 00:18:54]} 46...Kf6 {[%clk
00:45:07][%emt 00:01:03]} 47.c6 {[%clk 00:32:07][%emt 00:00:09]} 47...Rc5 
{[%clk 00:44:12][%emt 00:01:25]} 48.c7 {[%clk 00:20:37][%emt 00:12:00]} 
48...Rc2+ {[%clk 00:44:28][%emt 00:00:14]} 49.Kg3 {[%clk 00:21:03][%emt
00:00:03]} 49...Ne2+ {[%clk 00:44:52][%emt 00:00:06]} 50.Kf3 {[%clk
00:18:43][%emt 00:02:50]} 50...b2 {[%clk 00:43:33][%emt 00:01:49]} 51.Ke3 
{[%clk 00:16:25][%emt 00:02:47]} 51...Ng3 {[%clk 00:34:06][%emt 00:09:58]} 
52.Qb6+ {[%clk 00:12:16][%emt 00:04:39]} 52...Kf5 {[%clk 00:32:36][%emt
00:02:00]} 53.Qxb2 {[%clk 00:09:46][%emt 00:03:01]} 53...Rxc7 {[%clk
00:29:26][%emt 00:03:39]} 54.Qf2+ {[%clk 00:10:09][%emt 00:00:07]} 54...Ke6 
{[%clk 00:29:54][%emt 00:00:02]} 55.Qa2+ {[%clk 00:10:05][%emt 00:00:33]} 
55...Kd6 {[%clk 00:26:02][%emt 00:04:23]} 56.Qa6+ {[%clk 00:07:46][%emt
00:02:49]} 56...Ke7 {[%clk 00:23:56][%emt 00:02:36]} 57.Kf4 {[%clk
00:04:40][%emt 00:03:36]} 57...Rc3 {[%clk 00:23:30][%emt 00:00:56]} 58.Qb6 
{[%clk 00:05:00][%emt 00:00:10]} 58...Kf7 {[%clk 00:18:18][%emt 00:05:41]} 
59.Ke5 {[%clk 00:04:58][%emt 00:00:32]} 59...Kg7 {[%clk 00:17:38][%emt
00:01:11]} 60.Qb2 {[%clk 00:04:31][%emt 00:00:58]} 60...Rf3 {[%clk
00:16:20][%emt 00:01:48]} 61.Ke6+ {[%clk 00:01:31][%emt 00:03:29]} 61...Kg6 
{[%clk 00:14:56][%emt 00:01:54]} 62.Qe5 {[%clk 00:15:27][%emt 00:01:34]} 
62...Nf5 {[%clk 00:28:50][%emt 00:01:35]} 63.Qf6+ {[%clk 00:15:32][%emt
00:00:26]} 63...Kh7 {[%clk 00:29:19][%emt 00:00:01]} 64.Ke5 {[%clk
00:14:55][%emt 00:01:06]} 64...Rf2 {[%clk 00:22:05][%emt 00:07:45]} 65.Qf7+ 
{[%clk 00:14:37][%emt 00:00:48]} 65...Kh8 {[%clk 00:19:52][%emt 00:02:43]} 
66.Qxh5+ {[%clk 00:15:01][%emt 00:00:06]} 66...Kg7 {[%clk 00:20:15][%emt
00:00:06]} 67.Qg5+ {[%clk 00:14:17][%emt 00:01:14]} 67...Kh8 {[%clk
00:19:32][%emt 00:01:14]} 68.Qf6+ {[%clk 00:11:25][%emt 00:03:22]} 68...Kh7 
{[%clk 00:19:28][%emt 00:00:33]} 69.h5 {[%clk 00:08:35][%emt 00:03:21]} 
69...Re2+ {[%clk 00:18:10][%emt 00:01:47]} 70.Kd5 {[%clk 00:08:55][%emt
00:00:11]} 70...Ne7+ {[%clk 00:17:09][%emt 00:01:31]} 71.Kd6 {[%clk
00:09:01][%emt 00:00:23]} 71...Ng8 {[%clk 00:16:23][%emt 00:01:16]} 72.Qg6+ 
{[%clk 00:07:57] [%emt 00:01:35]} 72...Kh8 {[%clk 00:16:50] [%emt 00:00:02]} 
73.h6 {[%clk 00:08:16] [%emt 00:00:11]} 73...Re7 {[%clk 00:16:09] [%emt
00:01:12]} 74.Qf5 {[%clk 00:08:24] [%emt 00:00:21]} 74...Re1 {[%clk 00:13:31]
[%emt 00:03:06]} 75.h7 {[%clk 00:08:02] [%emt 00:00:55]} 75...Nh6 {[%clk
00:12:42] [%emt 00:01:19]} 76.Qc8+ {[%clk 00:07:47] [%emt 00:00:45]} 76...Kxh7 
{[%clk 00:13:06] [%emt 00:00:06]} 77.Qc2+ {[%clk 00:08:14]} 1-0